fUSD/lending_fUSD_20240125
["ID","MTS","AMOUNT","RATE_DAILY","PERIOD"]
[312668122,1706141547188,-1822.59,0.00052876,2]
[312668123,1706141547197,-500.0,0.00052876,31]
[312668124,1706141547207,-500.0,0.00052876,31]
[312668125,1706141547216,-500.0,0.00052876,31]
[312668126,1706141547226,-500.0,0.00052876,31]
[312668127,1706141547235,-500.0,0.00052876,31]
[312668128,1706141547245,-500.0,0.00052876,31]
[312668129,1706141547254,-1129.79,0.00052876,31]
[312668130,1706141547263,-605.74,0.00052876,31]
[312668131,1706141547272,-500.0,0.00052876,31]
[312668132,1706141547281,-724.18,0.00052876,31]
[312668133,1706141547291,-824.96,0.00052876,31]
[312668134,1706141547304,-887.42,0.00052876,31]
[312668135,1706141547313,-866.53,0.00052876,31]
[312668136,1706141547323,-510.96,0.00052876,31]
[312668137,1706141547332,-500.0,0.00052876,31]
[312668138,1706141547342,-757.86,0.00052876,2]
[312668139,1706141547351,-500.0,0.00052876,31]
[312668140,1706141547360,-500.0,0.00052876,31]
[312668141,1706141547371,-887.79,0.00052876,31]
[312668142,1706141547381,-167.0,0.00052877,3]
[312668143,1706141547390,-153.87365434,0.00052888,60]
[312668144,1706141547399,-210.0,0.000529,40]
[312668145,1706141547409,-151.30998428,0.000529,55]
[312668146,1706141547418,-1000.0,0.000529,19]
[312668147,1706141547428,-800.0,0.000529,19]
[312668148,1706141547437,-647.69,0.00052904,120]
[312668149,1706141547446,-65670.0,0.0005292,30]
[312668150,1706141547455,-1151.0,0.0005292,30]
[312668151,1706141547465,-328.0,0.0005292,30]
[312668152,1706141547474,-155.25098285,0.00052942,60]
[312668153,1706141547483,-1463.20744382,0.00052949,60]
[312668154,1706141547492,-1463.20744382,0.00052991,60]
[312668155,1706141547501,-1000.0,0.00052999,120]
[312668156,1706141547511,-100000.0,0.00053,43]
[312668157,1706141547520,-267280.71164296,0.00053,30]
[312668158,1706141547672,-802.94,0.00053,30]
[312668159,1706141547683,-23520.06550362,0.00053,30]
[312668160,1706141547692,-214.16326032,0.00053,2]
[312668161,1706141547702,-564.02805151,0.00053,2]
[312668162,1706141547711,-500.0,0.00053,6]
[312668163,1706141547720,-10225.50908022,0.00053,30]
[312668164,1706141547729,-263.78490258,0.00053,6]
[312668165,1706141547740,-236.21509742,0.00053,6]
[312668166,1706141547749,-694.80490298,0.00053,60]
[312668167,1706141547761,-481.56,0.00053,60]
[312668168,1706141547781,-898.3240983,0.00053,60]
[312668169,1706141547791,-2125.0,0.00053,120]
[312668170,1706141547800,-50118.59213153,0.00053,120]
[312668171,1706141547811,-365.99022689,0.00053,120]
[312668172,1706141547822,-1748.503797,0.00053,120]
[312668173,1706141548056,3000.0,0.00021556,2]
[312668174,1706141548318,-233.3484501,0.00021728,2]
[312668175,1706141548328,-2905.20756788,0.00021728,2]
[312668176,1706141548338,-303.79260505,0.00021728,2]
[312668177,1706141548347,-245.21688013,0.00021789,2]
[312668178,1706141548356,-155.0,0.00021789,2]
[312668179,1706141548366,-384.56994741,0.00021872,2]
[312668180,1706141548375,-272.0,0.00022216,2]
[312668181,1706141548386,-1531.16,0.00049315,2]
[312668182,1706141548395,-500.0,0.00049315,31]
[312668183,1706141548404,-1531.16,0.00049589,2]
[312668184,1706141548415,-500.0,0.00049589,31]
[312668185,1706141548424,-825.05454943,0.00049863,2]
[312668186,1706141548471,-281.58631847,0.00049863,2]
[312668187,1706141548483,-424.5191321,0.00049863,2]
[312668188,1706141548492,-491.22964282,0.00049863,31]
[312668189,1706141548504,-8.77035718,0.00049863,31]
[312668190,1706141548513,-991.93470308,0.00050136,2]
[312668191,1706141548524,-365.4722917,0.00050136,2]
[312668192,1706141548536,-173.75300522,0.00050136,2]
[312668193,1706141548546,-466.89661972,0.00050136,31]
[312668194,1706141548557,-33.10338028,0.00050136,31]
[312668195,1706141548566,-1488.91443361,0.0005041,2]
[312668196,1706141548579,-42.24556639,0.0005041,2]
[312668197,1706141548590,-500.0,0.0005041,31]
[312668198,1706141548599,-526.28286088,0.00050684,2]
[312668199,1706141548610,-1004.87713912,0.00050684,2]
[312668200,1706141548620,-500.0,0.00050684,31]
[312668201,1706141548630,-500.0,0.00050958,31]
[312668202,1706141548639,-1531.16,0.00050958,2]
[312668203,1706141548648,-156.51392506,0.00050958,31]
[312668204,1706141548658,-500.0,0.00051232,31]
[312668205,1706141548667,-1531.16,0.00051232,2]
[312668206,1706141548676,-500.0,0.00051506,31]
[312668207,1706141548686,-500.0,0.0005178,31]
[312668208,1706141548695,-500.0,0.00052054,31]
[312668209,1706141548704,-500.0,0.00052328,31]
[312668210,1706141548714,-500.0,0.00052602,31]
[312668211,1706141548723,-566.99,0.00052876,31]
[312668212,1706141548732,-500.0,0.00052876,31]
[312668213,1706141548741,-8474.9759348,0.00053,120]
[312668214,1706141548753,-1962.07266815,0.00053,120]
[312668215,1706141548765,-421.52,0.00053,120]
[312668216,1706141548777,-4965.87848817,0.00053,120]
[312668217,1706141548788,-828.1564389,0.00053,120]
[312668218,1706141548800,-1626.96654683,0.00053,120]
[312668219,1706141548812,-749.60181801,0.00053,120]
[312668220,1706141548824,-1470.96068495,0.00053,120]
[312668221,1706141548835,-14695.69462396,0.00053,120]
[312668222,1706141548846,-75145.17522625,0.00053,120]
[312668223,1706141548858,-2770.83552027,0.00053,120]
[312668224,1706141548881,-892.77987388,0.00051506,2]
[312668225,1706141548893,-601.965,0.00051506,2]
[312668226,1706141548904,-36.41512612,0.00051506,2]
[312668227,1706141548914,-789.09709592,0.00053,120]
[312668228,1706141549537,-751.42389674,0.00021788,2]
[312668229,1706141549547,-160.85063885,0.00021788,2]
[312668230,1706141549557,-371.63566507,0.00021788,2]
[312668231,1706141549566,-582.71363367,0.00021788,2]
[312668232,1706141549576,-232.27722935,0.00021789,2]
[312668233,1706141549585,-150.99,0.00022216,2]
[312668234,1706141549594,-500.0,0.00022899,2]
[312668235,1706141549603,-500.0,0.00022899,2]
[312668236,1706141549613,-500.0,0.00022899,2]
[312668237,1706141549622,-422.10893632,0.00022899,2]
[312668238,1706141549634,-77.89106368,0.00022899,2]
[312668239,1706141549643,-500.0,0.00022899,2]
[312668240,1706141549652,-459.00917517,0.00022899,2]
[312668241,1706141549693,-40.99082483,0.00022899,2]
[312668242,1706141549703,-500.0,0.00022899,2]
[312668243,1706141549712,-394.03885114,0.00022899,2]
[312668244,1706141549721,-485.28641476,0.00022899,2]
[312668245,1706141549730,-177.03159931,0.000229,2]
[312668246,1706141549739,-253.70604875,0.0003888,2]
[312668247,1706141549749,-427.34123033,0.00049315,31]
[312668248,1706141549760,-173.29876967,0.00049315,31]
[312668249,1706141549770,-600.64,0.00049589,31]
[312668250,1706141549779,-600.64,0.00049863,31]
[312668251,1706141549788,-600.64,0.00050136,31]
[312668252,1706141549798,-600.64,0.0005041,31]
[312668253,1706141549807,-1531.16,0.0005178,2]
[312668254,1706141549817,-1531.16,0.00052054,2]
[312668255,1706141549826,-232.34483035,0.00052328,2]
[312668256,1706141549838,-1298.81516965,0.00052328,2]
[312668257,1706141549847,-1531.16,0.00052602,2]
[312668258,1706141549857,-35.20064469,0.00052876,2]
[312668259,1706141549870,-386.96454,0.00052876,2]
[312668260,1706141549881,-1108.99481531,0.00052876,2]
[312668261,1706141549891,-14801.00518785,0.00053,120]
[312668262,1706141549923,-20000.0,0.00053,120]
[312668263,1706141549934,-18872.856073,0.00053,120]
[312668264,1706141549945,-1318.2171175,0.00053,120]
[312668265,1706141549957,-1388.38523422,0.00053,120]
[312668266,1706141549968,-255.14829,0.00053,120]
[312668267,1706141549980,-34243.77725499,0.00053,120]
[312668268,1706141549991,-5566.21601498,0.00053,120]
[312668269,1706141550003,-2993.73160016,0.00053,120]
[312668270,1706141550016,-474.34999955,0.00053,120]
[312668271,1706141550027,-2464.50716502,0.00053,120]
[312668272,1706141550038,-580.97750175,0.00053,120]
[312668273,1706141550049,-1041.7433379,0.00053,120]
[312668274,1706141550061,-10824.9999,0.00053,120]
[312668275,1706141550073,-2766.39563642,0.00053,120]
[312668276,1706141550085,-840.2851972,0.00053,120]
[312668277,1706141550096,-500.02880356,0.00053,120]
[312668278,1706141550108,-280.0000073,0.00053,120]
[312668279,1706141550120,-1404.585,0.00053,120]
[312668280,1706141550837,-4251.93051247,0.00021728,2]
[312668281,1706141550847,-2138.55836364,0.00021788,2]
[312668282,1706141550856,-170.35921833,0.00021788,2]
[312668283,1706141550867,-7792.89043121,0.00021788,2]
[312668284,1706141550876,-397.53432304,0.00021788,2]
[312668285,1706141550886,-279.66758209,0.00021788,2]
[312668286,1706141550895,-209.99885873,0.00021788,2]
[312668287,1706141550904,-233.47228748,0.00021788,2]
[312668288,1706141550914,-384.56994741,0.00021939,2]
[312668289,1706141550923,-1448.61391766,0.00022653,2]
[312668290,1706141550932,-6912.7047262,0.000229,2]
[312668291,1706141550944,-4419.63900856,0.000229,2]
[312668292,1706141551000,-178.04727773,0.00021788,2]
[312668293,1706141551009,-647.07582193,0.00021788,2]
[312668294,1706141551027,-352.19046089,0.00021788,2]
[312668295,1706141551036,-67.87133911,0.00021788,2]
[312668296,1706141551048,-388.16985827,0.00021788,2]
[312668297,1706141551066,-322.72569877,0.00021788,2]
[312668298,1706141558680,297.8683,0.00021631,2]
[312668299,1706141559507,2905.20756788,0.00021555,2]
[312668300,1706141559889,245.21688013,0.00021555,2]
[312668301,1706141560309,160.85063885,0.00021554,2]
[312668302,1706141560381,279.66758209,0.00021554,2]
[312668303,1706141560548,250.61147486,0.00021554,2]
[312668304,1706141560576,582.71363367,0.00021554,2]
[312668305,1706141560677,233.47228748,0.00021554,2]
[312668306,1706141560723,155.0,0.00021554,2]
[312668307,1706141560946,155.0,0.00021554,2]
[312668308,1706141560985,629.62922695,0.00021554,2]
[312668309,1706141561037,226.28651302,0.00021554,2]
[312668310,1706141561087,155.0,0.00021553,2]
[312668311,1706141561125,265.79985989,0.00021554,2]
[312668312,1706141561172,7792.89043121,0.00021554,2]
[312668313,1706141561261,155.0,0.00021553,2]
[312668314,1706141561290,178.04727773,0.00021553,2]
[312668315,1706141561345,1071.96370442,0.00021553,2]
[312668316,1706141561632,2322.48376811,0.00021553,2]
[312668317,1706141561671,354.93675515,0.00021552,2]
[312668318,1706141561706,310.53705764,0.00021553,2]
[312668319,1706141561843,43053.10894265,0.00021553,2]
[312668320,1706141561891,155.0,0.00021552,2]
[312668321,1706141561962,245000.0,0.00021631,2]
[312668322,1706141562097,202.91523791,0.00021552,2]
[312668323,1706141562131,155.0,0.00021552,2]
[312668324,1706141562175,155.0,0.00021552,2]
[312668325,1706141562246,407.66796067,0.00021552,2]
[312668326,1706141562338,155.0,0.00021552,2]
[312668327,1706141562848,231.98046264,0.00021552,2]
[312668328,1706141562918,369.01149739,0.00021551,2]
[312668329,1706141562966,1042.54387755,0.00021551,2]
[312668330,1706141563038,226.28651302,0.00021551,2]
[312668331,1706141563113,971711.22944501,0.0002163,2]
[312668332,1706141563139,86492.21683933,0.0002163,2]
[312668333,1706141563240,150.0,0.00021551,2]
[312668334,1706141563272,150.0,0.00021551,2]
[312668335,1706141563317,300.0,0.00021551,2]
[312668336,1706141563498,155.0,0.00021551,2]
[312668337,1706141563582,3189.02732385,0.00021551,2]
[312668338,1706141563618,233.47228748,0.00021551,2]
[312668339,1706141563719,1071.96370442,0.0002155,2]
[312668340,1706141563817,1838.09428012,0.0002155,2]
[312668341,1706141564002,180.88163342,0.0002155,2]
[312668342,1706141564241,354.93675515,0.00021549,2]
[312668343,1706141564422,578.77952912,0.00021549,2]
[312668344,1706141564553,155.0,0.00021549,2]
[312668345,1706141564641,164.1687383,0.00021551,2]
[312668346,1706141564741,2438.82130199,0.00021549,2]
[312668347,1706141564877,6589.05,0.00021631,14]
[312668348,1706141565519,469.62065256,0.00021549,2]
[312668349,1706141565804,983572.31079603,0.00021629,2]
[312668350,1706141565828,74631.13548831,0.00021629,2]
[312668351,1706141565881,1042.54387755,0.00021548,2]
[312668352,1706141566004,160.17590453,0.00021548,2]
[312668353,1706141566119,1107.14369316,0.00021548,2]
[312668354,1706141566808,614.14810581,0.00021547,2]
[312668355,1706141567006,164.1687383,0.00021551,2]
[312668356,1706141567393,8123.28837707,0.00021549,2]
[312668357,1706141572207,13029.36295885,0.00021628,2]
[312668358,1706141576481,1578520.22907718,0.00021627,2]
[312668359,1706141577504,620.97346338,0.0002163,2]
[312668360,1706141580961,1930.14240826,0.0002163,2]
[312668361,1706141583349,1543.71687196,0.0002163,2]
[312668362,1706141592810,357.88992819,0.0002163,2]
[312668363,1706141593225,168.61937043,0.0002163,2]
[312668364,1706141594028,1174.71570469,0.0002163,2]
[312668365,1706141594289,43053.10894265,0.0002163,2]
[312668366,1706141594722,313.04847603,0.0002163,2]
[312668367,1706141595011,157.39258602,0.0002163,2]
[312668368,1706141595850,281.73382105,0.0002163,2]
[312668369,1706141596074,155.3355389,0.0002163,2]
[312668370,1706141596137,4277.6096426,0.0002163,2]
[312668371,1706141596188,300.1592536,0.0002163,2]
[312668372,1706141597363,181.24950927,0.0002163,2]
[312668373,1706141597390,364.66790247,0.0002163,2]
[312668374,1706141597747,678.68968561,0.0002163,2]
[312668375,1706141598671,273.07674301,0.0002163,2]
[312668376,1706141598717,173.8227881,0.0002163,2]
[312668377,1706141598989,494.42361893,0.0002163,2]
[312668378,1706141599500,212.58670693,0.0002163,2]
[312668379,1706141599632,3148.06260981,0.0002163,2]
[312668380,1706141602849,158.4160326,0.0002163,2]
[312668381,1706141606750,2282.34529702,0.0002163,2]
[312668382,1706141608626,384.63669128,0.0002163,2]
[312668383,1706141614198,157.59760849,0.0002163,2]
[312668384,1706141631546,43599.0,0.00021482,2]
[312668385,1706141638334,23900.0,0.00021283,2]
[312668386,1706141638632,219.84137367,0.0002159,2]
[312668387,1706141653724,2000.0,0.00021279,2]
[312668388,1706141667708,491.69,0.00021279,2]
[312668389,1706141701630,300.0,0.0002163,2]
[312668390,1706141738748,2878.8357,0.0002159,2]
[312668391,1706141748120,55060.57327798,0.00021621,2]
[312668392,1706141761895,580.7226,0.0002159,2]
[312668393,1706141764429,1579.935,0.0002159,2]
[312668394,1706141778246,176.5,0.00021208,2]
[312668395,1706141783873,219.84137366,0.0002159,2]
[312668396,1706141791584,5375.4697,0.0002159,2]
[312668397,1706141804364,155.33,0.00021351,2]
[312668398,1706141818262,200.0,0.00021368,2]
[312668399,1706141820588,1000.0,0.00021368,2]
[312668400,1706141824481,945.1059,0.0002159,2]
[312668401,1706141849507,199.1114,0.0002159,2]
[312668402,1706141859477,243.0552,0.0002159,2]
[312668403,1706141866305,1000.2065,0.0002159,2]
[312668404,1706141870740,250.0,0.00021383,2]
[312668405,1706141871079,154.13,0.00021383,2]
[312668406,1706141919227,219.84137366,0.00021621,2]
[312668408,1706141953258,165.22,0.00021351,2]
[312668410,1706142004368,257.96700786,0.00021544,2]
[312668411,1706142010606,151.23,0.00019433,2]
[312668412,1706142011702,1000.0,0.0002159,2]
[312668413,1706142044473,169.94,0.00021357,2]
[312668414,1706142086405,2000.0,0.00021357,2]
[312668415,1706142124199,2500.0,0.0002159,2]
[312668417,1706142249570,1000.0,0.0002159,2]
[312668418,1706142250885,200.0,0.00021421,2]
[312668419,1706142288819,101465.82010498,0.0002159,2]
[312668420,1706142288844,41347.43999502,0.0002159,2]
[312668421,1706142317982,409.74,0.00021412,2]
[312668422,1706142320414,250.0,0.00021412,2]
[312668423,1706142376799,821.6345251,0.0002163,2]
[312668424,1706142405571,176.5,0.0002069,2]
[312668425,1706142406914,176.5,0.00021238,2]
[312668426,1706142492829,151.98,0.00019505,2]
[312668428,1706142502266,526.45800285,0.0002163,2]
[312668429,1706142516278,1000.0,0.0002159,2]
[312668430,1706142520360,327.64544965,0.0002163,2]
[312668432,1706142575418,2000.0,0.00021411,2]
[312668433,1706142583813,279.3769738,0.0002163,2]
[312668449,1706142631637,-410.62500001,0.00021631,2]
[312668450,1706142631649,-501.10653636,0.00021631,2]
[312668451,1706142631660,-43966.84,0.00021631,2]
[312668452,1706142631693,-2107.65555,0.00021631,2]
[312668453,1706142631705,-1046.5,0.00021631,2]
[312668454,1706142631752,-418.79592,0.00021631,2]
[312668455,1706142631765,-296.68801055,0.00021631,2]
[312668456,1706142631776,-1124.72457423,0.00021631,2]
[312668457,1706142631909,-21442.50370885,0.00021631,2]
[312668459,1706142631919,-2707.65,0.00021644,2]
[312668461,1706142631928,-490.6833,0.0002169,2]
[312668463,1706142631937,-300.0,0.0002169,2]
[312668465,1706142631946,-11989.8148,0.0002169,2]
[312668466,1706142631955,-1000.0,0.0002169,2]
[312668467,1706142631965,-17984.41081929,0.0002169,2]
[312668468,1706142631976,-401.93226,0.0002169,2]
[312668469,1706142631988,-390.72,0.0002169,2]
[312668470,1706142632013,-992.61528431,0.0002169,2]
[312668471,1706142632025,-8314.90419443,0.0002169,2]
[312668477,1706142637599,-635.89780451,0.0002169,2]
[312668478,1706142637610,-920.50000104,0.0002169,2]
[312668479,1706142637659,-2095.768675,0.0002169,2]
[312668480,1706142637720,-562.68517179,0.0002169,2]
[312668481,1706142637732,-1866.437905,0.0002169,2]
[312668482,1706142637743,-496183.93008463,0.0002169,2]
[312668483,1706142637752,-52320.627,0.0002169,2]
[312668484,1706142637762,-231.31,0.00021745,2]
[312668485,1706142637771,-214.66902567,0.00021766,2]
[312668486,1706142637781,-3008.52191293,0.00021786,2]
[312668487,1706142637794,-155.38943818,0.00021786,2]
[312668488,1706142637803,-155.0,0.00021786,2]
[312668489,1706142637812,-155.0,0.00021786,2]
[312668490,1706142637822,-164.1687383,0.00021786,2]
[312668491,1706142637832,-299.99,0.00021786,7]
[312668492,1706142637841,-173.75,0.00021786,2]
[312668493,1706142637851,-408.02,0.00021786,2]
[312668494,1706142637861,-6324.17,0.00021786,2]
[312668495,1706142637872,-150.99,0.00021786,2]
[312668496,1706142637882,-37811.31,0.00021786,2]
[312668497,1706142637891,-10718.69,0.00021786,2]
[312668498,1706142637900,-176.5,0.00021786,2]
[312668499,1706142637910,-319.09945817,0.00021787,2]
[312668500,1706142637919,-287.1988675,0.00021788,2]
[312668501,1706142637929,-264.79743095,0.00021788,2]
[312668502,1706142637938,-254.10632496,0.00021788,2]
[312668503,1706142637948,-226.24702088,0.00021788,2]
[312668504,1706142637957,-196.03295886,0.00021788,2]
[312668505,1706142637967,-1324.52856252,0.00021788,2]
[312668506,1706142637976,-379.43017785,0.00021788,2]
[312668507,1706142637986,-3317.46243141,0.00021788,2]
[312668508,1706142637995,-7972.32541636,0.00021788,2]
[312668509,1706142638004,-917.76,0.00021788,2]
[312668510,1706142638013,-9999.99,0.00021788,2]
[312668512,1706142638022,-1022.55,0.00021788,2]
[312668514,1706142638031,-499.99,0.00021788,2]
[312668516,1706142638040,-348.13,0.00021788,2]
[312668518,1706142638050,-231.31,0.00021804,2]
[312668520,1706142638059,-231.31,0.00021864,2]
[312668522,1706142638068,-815.36,0.00021864,2]
[312668524,1706142638078,-499.99,0.00021864,2]
[312668526,1706142638087,-400.0,0.000219,7]
[312668528,1706142638097,-250.0,0.00021918,2]
[312668530,1706142638106,-3527.18,0.00021918,2]
[312668532,1706142638115,-231.31,0.00021924,2]
[312668534,1706142638125,-231.31,0.00021983,2]
[312668536,1706142638134,-208.07744816,0.00022,2]
[312668538,1706142638143,-1043.15716476,0.00022,2]
[312668540,1706142638152,-2783.81299809,0.00022,2]
[312668542,1706142638161,-151.98,0.00022035,2]
[312668544,1706142638170,-231.31,0.00022043,2]
[312668546,1706142638179,-231.31,0.00022103,2]
[312668548,1706142638188,-231.31,0.00022162,2]
[312668550,1706142638198,-1453.94737551,0.00022208,2]
[312668552,1706142638207,-1453.94737552,0.00022208,2]
[312668554,1706142638216,-1794.30375309,0.00022211,2]
[312668556,1706142638225,-231.31,0.00022222,2]
[312668558,1706142638234,-231.31,0.00022281,2]
[312668560,1706142638242,-176.5,0.00022334,2]
[312668562,1706142638252,-231.31,0.00022341,2]
[312668564,1706142638260,-257.96700771,0.000224,2]
[312668566,1706142638270,-231.31,0.00022401,2]
[312668568,1706142638279,-2707.65,0.00022445,2]
[312668570,1706142638288,-231.31,0.0002246,2]
[312668572,1706142638298,-231.31,0.0002252,2]
[312668574,1706142638307,-231.31,0.0002258,2]
[312668576,1706142638316,-231.31,0.00022639,2]
[312668578,1706142638324,-231.31,0.00022699,2]
[312668580,1706142638333,-129520.46721215,0.0002275,2]
[312668582,1706142638342,-231.31,0.00022759,2]
[312668584,1706142638351,-155.33,0.00022774,2]
[312668586,1706142638360,-263.7,0.00022791,2]
[312668589,1706142638370,-390.50570516,0.000228,2]
[312668591,1706142638380,-167.61944862,0.000228,2]
[312668593,1706142638389,-151.76148224,0.000228,2]
[312668595,1706142638397,-231.31,0.00022818,2]
[312668596,1706142638406,-231.31,0.00022878,2]
[312668599,1706142638415,-176.5,0.00022882,2]
[312668601,1706142638425,-524.73097027,0.00022898,2]
[312668603,1706142638434,-307.08660911,0.00022898,2]
[312668605,1706142638443,-207.15952483,0.00022898,2]
[312668607,1706142638453,-304.24936636,0.00022898,2]
[312668609,1706142638462,-2802.16583513,0.00022898,2]
[312668611,1706142638471,-1345.19407894,0.00022898,2]
[312668613,1706142638480,-1514.05200878,0.00022898,4]
[312668615,1706142638489,-357.27227523,0.00022898,2]
[312668617,1706142638498,-305.35893993,0.00022898,2]
[312668619,1706142638507,-241.08864406,0.00022898,2]
[312668621,1706142638518,-160.22290525,0.00022898,2]
[312668623,1706142638527,-155.0,0.00022898,2]
[312668640,1706142638674,-506291.87441085,0.000229,2]
[312668642,1706142638683,-151.30998428,0.000229,2]
[312668644,1706142638693,-900.0,0.000229,8]
[312668646,1706142638702,-724.9,0.00022998,2]
[312668648,1706142638711,-409.74,0.00023056,2]
[312668650,1706142638720,-2707.65,0.00023245,2]
[312668652,1706142638729,-257.96700771,0.00023255,2]
[312668654,1706142638738,-176.5,0.0002343,2]
[312668656,1706142638747,-176.5,0.00023978,2]
[312668658,1706142638756,-1000.0,0.00024039,2]
[312668660,1706142638765,-2707.65,0.00024046,2]
[312668662,1706142638775,-200.0,0.00024099,2]
[312668664,1706142638785,-257.96700771,0.00024111,2]
[312668666,1706142638796,-263.7,0.00024161,2]
[312668668,1706142638805,-155.33,0.00024198,2]
[312668670,1706142638815,-176.5,0.00024526,2]
[312668672,1706142638823,-151.98,0.00024565,2]
[312668674,1706142638833,-250.0,0.00024658,2]
[312668676,1706142638843,-409.74,0.000247,2]
[312668678,1706142638851,-2707.65,0.00024847,2]
[312668680,1706142638860,-257.96700771,0.00024966,2]
[312668682,1706142638870,-450.0,0.00025,3]
[312668684,1706142638879,-176.5,0.00025074,2]
[312668686,1706142638889,-155.33,0.00025621,2]
[312668688,1706142638898,-176.5,0.00025622,2]
[312668690,1706142638907,-257.96700771,0.00025822,2]
[312668691,1706142638917,-500.0,0.00026,2]
[312668694,1706142638927,-176.5,0.0002617,2]
[312668695,1706142638936,-409.74,0.00026344,2]
[312668697,1706142638945,-190.13,0.00026575,2]
[312668700,1706142638956,-1643.88,0.00026575,2]
[312668702,1706142638965,-151.76148224,0.00026616,2]
[312668703,1706142638974,-257.96700771,0.00026677,2]
[312668705,1706142638983,-1000.0,0.0002671,2]
[312668708,1706142638992,-176.5,0.00026718,2]
[312668710,1706142639001,-200.0,0.00026776,2]
[312668711,1706142639011,-6824.17490637,0.00027,5]
[312668713,1706142639020,-416.63129497,0.00027,2]
[312668715,1706142639029,-500.0,0.00027,3]
[312668717,1706142639038,-151.98,0.00027095,2]
[312668719,1706142639047,-176.5,0.00027266,2]
[312668721,1706142639056,-571.84,0.00027397,2]
[312668723,1706142639065,-257.96700771,0.00027533,2]
[312668726,1706142639075,-571.84,0.00027556,2]
[312668728,1706142639084,-571.84,0.00027714,2]
[312668730,1706142639093,-176.5,0.00027814,2]
[312668732,1706142639103,-571.84,0.00027872,2]
[312668734,1706142639112,-409.74,0.00027988,2]
[312668736,1706142639121,-571.84,0.0002803,2]
[312668738,1706142639130,-571.84,0.00028189,2]
[312668740,1706142639139,-571.84,0.00028347,2]
[312668742,1706142639148,-176.5,0.00028362,2]
[312668744,1706142639157,-257.96700771,0.00028389,2]
[312668745,1706142639166,-571.84,0.00028505,2]
[312668747,1706142639175,-571.84,0.00028664,2]
[312668749,1706142639184,-571.84,0.00028822,2]
[312668751,1706142639194,-339.74853886,0.0002891,2]
[312668753,1706142639203,-257.96700771,0.00029244,2]
[312668755,1706142639212,-1000.0,0.00029381,2]
[312668758,1706142639221,-200.0,0.00029454,2]
[312668760,1706142639230,-151.98,0.00029626,2]
[312668762,1706142639240,-409.74,0.00029631,2]
[312668764,1706142639249,-2409.64292332,0.0003,2]
[312668766,1706142639258,-582.12143122,0.0003,2]
[312668768,1706142639267,-155.0,0.0003,2]
[312668769,1706142639276,-257.96700771,0.000301,2]
[312668772,1706142639286,-151.76148224,0.00030431,2]
[312668774,1706142639295,-1383.77,0.0003062,2]
[312668776,1706142639304,-257.96700771,0.00030955,2]
[312668778,1706142639314,-9689.0,0.000312,2]
[312668780,1706142639323,-3270.0,0.000314,2]
[312668781,1706142639332,-180.0,0.00031644,2]
[312668782,1706142639341,-197.4,0.00031644,2]
[312668783,1706142639350,-182.1248519,0.00031711,2]
[312668784,1706142639358,-1749.66437606,0.00031711,2]
[312668785,1706142639367,-16032.31355599,0.00031711,2]
[312668786,1706142639376,-278626.855175,0.000318,2]
[312668787,1706142639385,-257.96700771,0.00031811,2]
[312668788,1706142639394,-1000.0,0.00032052,2]
[312668789,1706142639402,-200.0,0.00032132,2]
[312668791,1706142639411,-151.98,0.00032156,2]
[312668793,1706142639420,-257.96700771,0.00032667,2]
[312668795,1706142639429,-151.3,0.00032877,15]
[312668797,1706142639438,-257.96700771,0.00033522,2]